fUSD/lending_fUSD_20250522
["ID","MTS","AMOUNT","RATE_DAILY","PERIOD"]
[361927174,1747894253955,-420.0,0.00032876,5]
[361927175,1747894253966,-420.0,0.00032876,5]
[361927176,1747894253975,-714.94,0.00032876,5]
[361927177,1747894253985,-400.88100365,0.00032876,5]
[361927178,1747894253995,-420.0,0.00032876,5]
[361927179,1747894254004,-606.11,0.00032876,5]
[361927180,1747894254014,-204.57281611,0.00032876,5]
[361927181,1747894254024,-420.0,0.00032876,5]
[361927182,1747894254034,-420.81942403,0.00032876,5]
[361927183,1747894254043,-504.34,0.00032876,5]
[361927184,1747894254054,-421.96897232,0.00032876,5]
[361927185,1747894254064,-420.0,0.00032876,5]
[361927186,1747894254075,-420.0,0.00032876,5]
[361927187,1747894254085,-420.0,0.00032876,5]
[361927188,1747894254095,-420.54,0.00032876,5]
[361927189,1747894254105,-1437.62,0.00032876,5]
[361927190,1747894254116,-420.0,0.00032876,5]
[361927191,1747894254126,-421.12525539,0.00032876,5]
[361927192,1747894254138,-404.45737497,0.00032876,5]
[361927193,1747894254148,-420.0,0.00032876,5]
[361927194,1747894254158,-1768.78,0.00032876,5]
[361927195,1747894254168,-422.3894509,0.00032876,5]
[361927196,1747894254178,-532.6,0.00032876,5]
[361927197,1747894254188,-420.0,0.00032876,5]
[361927198,1747894254198,-1343.73,0.00032876,5]
[361927199,1747894254208,-1462.22,0.00032876,5]
[361927200,1747894254219,-593.91,0.00032876,5]
[361927201,1747894254230,-420.0,0.00032876,5]
[361927202,1747894254239,-420.0,0.00032876,5]
[361927203,1747894254252,-420.0,0.00032876,5]
[361927204,1747894254261,-1292.13,0.00032876,5]
[361927205,1747894254271,-479.04,0.00032876,5]
[361927206,1747894254280,-420.0,0.00032876,5]
[361927207,1747894254290,-420.0,0.00032876,5]
[361927208,1747894254300,-1455.19,0.00032876,5]
[361927209,1747894254310,-421.95856485,0.00032876,5]
[361927210,1747894254320,-537.61,0.00032876,5]
[361927211,1747894254330,-420.46123465,0.00032876,5]
[361927212,1747894254340,-420.0,0.00032876,5]
[361927213,1747894254349,-484.4,0.00032876,5]
[361927214,1747894254359,-420.0,0.00032876,5]
[361927215,1747894254369,-420.30249053,0.00032876,5]
[361927216,1747894254379,-197.04952802,0.00032876,5]
[361927217,1747894254389,-644.66,0.00032876,5]
[361927218,1747894254399,-420.0,0.00032876,5]
[361927219,1747894254408,-420.0,0.00032876,5]
[361927220,1747894254419,-1205.55,0.00032876,5]
[361927221,1747894254428,-1234.25,0.00032876,5]
[361927222,1747894254441,-372.28955175,0.00032876,5]
[361927223,1747894254450,-1140.43,0.00032876,5]
[361927224,1747894254460,-420.0,0.00032876,5]
[361927225,1747894254470,-924.18,0.00032876,5]
[361927226,1747894254480,-937.37,0.00032876,5]
[361927227,1747894254489,-530.00774971,0.00032876,5]
[361927228,1747894254499,-796.62,0.00032876,5]
[361927229,1747894254508,-1385.1,0.00032876,5]
[361927230,1747894254518,-420.0,0.00032876,5]
[361927231,1747894254529,-420.0,0.00032876,5]
[361927232,1747894254539,-2449.4,0.00032876,5]
[361927233,1747894254549,-420.0,0.00032876,5]
[361927234,1747894254559,-420.0,0.00032876,5]
[361927235,1747894254568,-420.0,0.00032876,5]
[361927236,1747894254579,-618.22,0.00032876,5]
[361927237,1747894254588,-420.0,0.00032876,5]
[361927238,1747894254598,-1589.62,0.00032876,5]
[361927239,1747894254608,-420.0,0.00032876,5]
[361927240,1747894254618,-420.0,0.00032876,5]
[361927241,1747894254628,-453.59,0.00032876,5]
[361927242,1747894254637,-420.0,0.00032876,5]
[361927243,1747894254647,-420.0,0.00032876,5]
[361927244,1747894254657,-442.16,0.00032876,5]
[361927245,1747894254666,-897.51,0.00032876,5]
[361927246,1747894254676,-152.26712,0.00032876,7]
[361927247,1747894254685,-420.0,0.00032876,5]
[361927248,1747894254695,-605.21,0.00032876,5]
[361927249,1747894254705,-791.93,0.00032876,5]
[361927250,1747894254714,-463.26,0.00032876,5]
[361927251,1747894254723,-1487.43,0.00032876,5]
[361927252,1747894254733,-420.0,0.00032876,5]
[361927253,1747894254742,-1531.51,0.00032876,5]
[361927254,1747894254752,-540.64,0.00032876,5]
[361927255,1747894254761,-420.0,0.00032876,5]
[361927256,1747894254770,-420.51939758,0.00032876,5]
[361927257,1747894254780,-1238.01,0.00032876,5]
[361927258,1747894254790,-898.8,0.00032876,5]
[361927259,1747894254799,-420.0,0.00032876,5]
[361927260,1747894254809,-515.05,0.00032876,5]
[361927261,1747894254948,-421.64,0.00032876,5]
[361927262,1747894254959,-420.0,0.00032876,5]
[361927263,1747894254968,-420.0,0.00032876,5]
[361927264,1747894254978,-468.86,0.00032876,5]
[361927265,1747894254987,-1438.13,0.00032876,5]
[361927266,1747894254997,-420.0,0.00032876,5]
[361927267,1747894255006,-878.95,0.00032876,5]
[361927268,1747894255015,-380.23,0.00032876,5]
[361927269,1747894255025,-152.453329,0.00032876,7]
[361927270,1747894255035,-186.42429258,0.00032876,5]
[361927271,1747894255044,-451.33,0.00032876,5]
[361927272,1747894255054,-1037.36,0.00032876,5]
[361927273,1747894255064,-1261.42,0.00032876,5]
[361927274,1747894255073,-151.0,0.00032876,7]
[361927275,1747894255083,-420.0,0.00032876,5]
[361927276,1747894255093,-420.0,0.00032876,5]
[361927277,1747894255103,-420.0,0.00032876,5]
[361927278,1747894255112,-420.0,0.00032876,5]
[361927279,1747894255122,-420.0,0.00032876,5]
[361927280,1747894255131,-1582.51,0.00032876,5]
[361927281,1747894255145,-1065.64,0.00032876,5]
[361927282,1747894255155,-698.32,0.00032876,5]
[361927283,1747894255164,-423.17136855,0.00032876,5]
[361927284,1747894255173,-151.157638,0.00032876,7]
[361927285,1747894255183,-468.27851777,0.00032876,5]
[361927286,1747894255192,-420.0,0.00032876,5]
[361927287,1747894255201,-3276.19,0.00032876,5]
[361927288,1747894255210,-420.0,0.00032876,5]
[361927289,1747894255222,-420.0,0.00032876,5]
[361927290,1747894255232,-438.53,0.00032876,5]
[361927291,1747894255242,-1052.2,0.00032876,5]
[361927292,1747894255252,-420.0,0.00032876,5]
[361927293,1747894255261,-420.0,0.00032876,5]
[361927294,1747894255270,-420.0,0.00032876,5]
[361927295,1747894255280,-915.98,0.00032876,5]
[361927296,1747894255289,-420.0,0.00032876,5]
[361927297,1747894255299,-1144.98,0.00032876,5]
[361927298,1747894255308,-420.0,0.00032876,5]
[361927299,1747894255318,-420.0,0.00032876,5]
[361927300,1747894255327,-1237.93,0.00032876,5]
[361927301,1747894255336,-535.21,0.00032876,5]
[361927302,1747894255346,-642.8,0.00032876,5]
[361927303,1747894255355,-1879.57,0.00032876,5]
[361927304,1747894255365,-591.03,0.00032876,5]
[361927305,1747894255374,-420.0,0.00032876,5]
[361927306,1747894255384,-682.02,0.00032876,5]
[361927307,1747894255394,-420.0,0.00032876,5]
[361927308,1747894255404,-420.0,0.00032876,5]
[361927309,1747894255414,-873.91,0.00032876,5]
[361927310,1747894255423,-420.0,0.00032876,5]
[361927311,1747894255433,-420.0,0.00032876,5]
[361927312,1747894255442,-1044.16,0.00032876,5]
[361927313,1747894255452,-420.0,0.00032876,5]
[361927314,1747894255461,-420.0,0.00032876,5]
[361927315,1747894255470,-420.0,0.00032876,5]
[361927316,1747894255480,-1689.77,0.00032876,5]
[361927317,1747894255489,-734.06,0.00032876,5]
[361927318,1747894255498,-432.01,0.00032876,5]
[361927319,1747894255508,-679.26,0.00032876,5]
[361927320,1747894255518,-1132.7,0.00032876,5]
[361927321,1747894255528,-1243.13,0.00032876,5]
[361927322,1747894255538,-420.0,0.00032876,5]
[361927323,1747894255548,-420.0,0.00032876,5]
[361927324,1747894255557,-542.32,0.00032876,5]
[361927325,1747894255566,-1400.69,0.00032876,5]
[361927326,1747894255575,-420.87896209,0.00032876,5]
[361927327,1747894255585,-522.08,0.00032876,5]
[361927328,1747894255594,-926.4,0.00032876,5]
[361927329,1747894255603,-420.0,0.00032876,5]
[361927330,1747894255613,-420.0,0.00032876,5]
[361927331,1747894255623,-747.83,0.00032876,5]
[361927332,1747894255632,-420.0,0.00032876,5]
[361927333,1747894255642,-420.0,0.00032876,5]
[361927334,1747894255652,-1219.23,0.00032876,5]
[361927335,1747894255661,-424.81,0.00032876,5]
[361927336,1747894255670,-420.0,0.00032876,5]
[361927337,1747894255680,-420.0,0.00032876,5]
[361927338,1747894255689,-420.0,0.00032876,5]
[361927339,1747894255699,-658.5,0.00032876,5]
[361927340,1747894255708,-419.4540268,0.00032876,5]
[361927341,1747894255717,-997.46,0.00032876,5]
[361927342,1747894255727,-459.28064908,0.00032876,5]
[361927343,1747894255737,-420.0,0.00032876,5]
[361927344,1747894255746,-420.98470766,0.00032876,5]
[361927345,1747894255755,-420.61385293,0.00032876,5]
[361927346,1747894255765,-420.0,0.00032876,5]
[361927347,1747894255774,-420.0,0.00032876,5]
[361927348,1747894255784,-1045.57,0.00032876,5]
[361927349,1747894255794,-1129.58,0.00032876,5]
[361927350,1747894255804,-1260.74,0.00032876,5]
[361927351,1747894255814,-1217.93,0.00032876,5]
[361927352,1747894255824,-421.11981581,0.00032876,5]
[361927353,1747894255834,-648.08,0.00032876,5]
[361927354,1747894255843,-420.0,0.00032876,5]
[361927355,1747894255852,-420.0,0.00032876,5]
[361927356,1747894255862,-774.76,0.00032876,5]
[361927357,1747894255871,-420.0,0.00032876,5]
[361927358,1747894255881,-420.0,0.00032876,5]
[361927359,1747894255890,-603.37,0.00032876,5]
[361927360,1747894255900,-420.0,0.00032876,5]
[361927361,1747894255910,-420.0,0.00032876,5]
[361927362,1747894255920,-1483.56,0.00032876,5]
[361927363,1747894255929,-420.0,0.00032876,5]
[361927364,1747894255939,-1294.02,0.00032876,5]
[361927365,1747894255948,-1245.62,0.00032876,5]
[361927366,1747894255958,-420.0,0.00032876,5]
[361927367,1747894255967,-420.0,0.00032876,5]
[361927368,1747894255977,-420.0,0.00032876,5]
[361927369,1747894255986,-162.740191,0.00032876,7]
[361927370,1747894255996,-598.11,0.00032876,5]
[361927371,1747894256005,-602.61,0.00032876,5]
[361927372,1747894256015,-420.0,0.00032876,5]
[361927373,1747894256024,-646.31,0.00032876,5]
[361927374,1747894256034,-420.0,0.00032876,5]
[361927375,1747894256043,-606.27,0.00032876,5]
[361927376,1747894256053,-420.73184932,0.00032876,5]
[361927377,1747894256063,-1356.32,0.00032876,5]
[361927378,1747894256072,-2157.39,0.00032876,5]
[361927379,1747894256082,-1116.7,0.00032876,5]
[361927380,1747894256091,-402.30144059,0.00032876,5]
[361927381,1747894256100,-420.0,0.00032876,5]
[361927382,1747894256110,-1336.0,0.00032876,5]
[361927383,1747894256119,-420.0,0.00032876,5]
[361927384,1747894256129,-421.21188049,0.00032876,5]
[361927385,1747894256141,-420.0,0.00032876,5]
[361927386,1747894256151,-420.0,0.00032876,5]
[361927387,1747894256160,-420.0,0.00032876,5]
[361927388,1747894256170,-450.92,0.00032876,5]
[361927389,1747894256179,-420.0,0.00032876,5]
[361927390,1747894256188,-420.0,0.00032876,5]
[361927391,1747894256197,-727.12,0.00032876,5]
[361927392,1747894256206,-420.0,0.00032876,2]
[361927393,1747894256216,-1014.64,0.00032876,5]
[361927394,1747894256226,-983.02,0.00032876,5]
[361927395,1747894256236,-420.0,0.00032876,5]
[361927396,1747894256246,-421.19171575,0.00032876,5]
[361927397,1747894256258,-836.96,0.00032876,5]
[361927398,1747894256268,-420.0,0.00032876,5]
[361927399,1747894256277,-421.95196491,0.00032876,5]
[361927400,1747894256287,-1105.67,0.00032876,5]
[361927401,1747894256296,-1089.68,0.00032876,5]
[361927402,1747894256305,-420.0,0.00032876,5]
[361927403,1747894256314,-420.81191177,0.00032876,5]
[361927404,1747894256324,-505.45141338,0.00032876,5]
[361927405,1747894256333,-163.422562,0.00032876,7]
[361927406,1747894256342,-504.60685933,0.00032876,5]
[361927407,1747894256352,-424.03521499,0.00032876,5]
[361927408,1747894256361,-425.63615383,0.00032876,5]
[361927409,1747894256371,-420.0,0.00032876,5]
[361927410,1747894256380,-5000.0,0.00032876,2]
[361927411,1747894256389,-2221.76446666,0.00032876,3]
[361927412,1747894256398,-420.0,0.00032876,5]
[361927413,1747894256408,-421.20458606,0.00032876,5]
[361927414,1747894256418,-585.18,0.00032876,5]
[361927415,1747894256428,-513.03,0.00032876,5]
[361927416,1747894256437,-1159.32,0.00032876,5]
[361927417,1747894256446,-512.28,0.00032876,5]
[361927418,1747894256456,-420.0,0.00032876,5]
[361927419,1747894256466,-2839.44,0.00032876,5]
[361927420,1747894256476,-420.0,0.00032876,5]
[361927421,1747894256490,-422.91124553,0.00032876,5]
[361927422,1747894256499,-420.0,0.00032876,5]
[361927423,1747894256508,-420.0,0.00032876,5]
[361927424,1747894256518,-420.0,0.00032876,5]
[361927425,1747894256528,-1561.07,0.00032876,5]
[361927426,1747894256537,-421.49449817,0.00032876,5]
[361927427,1747894256546,-420.0,0.00032876,5]
[361927428,1747894256556,-420.0,0.00032876,5]
[361927429,1747894256566,-420.0,0.00032876,5]
[361927430,1747894256576,-1007.66,0.00032876,5]
[361927431,1747894256585,-1124.67,0.00032876,5]
[361927432,1747894256595,-420.0,0.00032876,5]
[361927433,1747894256607,-1007.66,0.00032876,5]
[361927434,1747894256616,-1007.66,0.00032876,5]
[361927435,1747894256625,-303.73175757,0.00032876,5]
[361927436,1747894256634,-1007.66,0.00032876,5]
[361927437,1747894256644,-1007.66,0.00032876,5]
[361927438,1747894256653,-1008.12,0.00032876,5]
[361927439,1747894256663,-1007.66,0.00032876,5]
[361927440,1747894256673,-1007.66,0.00032876,5]
[361927441,1747894256682,-1007.66,0.00032876,5]
[361927442,1747894256692,-1020.02,0.00032876,5]
[361927443,1747894256701,-1007.66,0.00032876,5]
[361927444,1747894256711,-1007.66,0.00032876,5]
[361927445,1747894256721,-1060.02,0.00032876,5]
[361927446,1747894256730,-420.0,0.00032876,5]
[361927447,1747894256740,-1007.66,0.00032876,5]
[361927448,1747894256750,-1007.66,0.00032876,5]
[361927449,1747894256760,-420.0,0.00032876,5]
[361927450,1747894256769,-420.0,0.00032876,5]
[361927451,1747894256780,-420.0,0.00032876,5]
[361927452,1747894256789,-420.0,0.00032876,5]
[361927453,1747894256798,-2147.78,0.00032876,5]
[361927454,1747894256807,-421.0768418,0.00032876,5]
[361927455,1747894256816,-407.15321139,0.00032876,5]
[361927456,1747894256826,-341.2043805,0.00032876,5]
[361927457,1747894256836,-420.0,0.00032876,5]
[361927458,1747894256846,-420.88650638,0.00032876,5]
[361927459,1747894256855,-529.88,0.00032876,5]
[361927460,1747894256865,-420.0,0.00032876,5]
[361927461,1747894256875,-622.5,0.00032876,5]
[361927462,1747894256885,-420.0,0.00032876,5]
[361927463,1747894256894,-420.0,0.00032876,5]
[361927464,1747894256904,-421.57,0.00032876,5]
[361927465,1747894256914,-420.0,0.00032876,5]
[361927466,1747894256924,-152.810081,0.00032876,7]
[361927467,1747894256933,-634.23,0.00032876,5]
[361927468,1747894256942,-420.0,0.00032876,5]
[361927469,1747894256952,-1733.79,0.00032876,5]
[361927470,1747894256962,-439.3,0.00032876,5]
[361927471,1747894256971,-484.44,0.00032876,5]
[361927472,1747894256981,-420.0,0.00032876,5]
[361927473,1747894256991,-420.0,0.00032876,5]
[361927474,1747894257001,-342.8475883,0.00032876,5]
[361927475,1747894257011,-420.0,0.00032876,5]
[361927476,1747894257020,-420.0,0.00032876,5]
[361927477,1747894257030,-420.84431783,0.00032876,5]
[361927478,1747894257039,-1121.71,0.00032876,5]
[361927479,1747894257048,-3271.35,0.00032876,5]
[361927480,1747894257058,-722.23,0.00032876,5]
[361927481,1747894257067,-420.0,0.00032876,5]
[361927482,1747894257077,-420.0,0.00032876,5]
[361927483,1747894257086,-420.0,0.00032876,5]
[361927484,1747894257096,-420.0,0.00032876,5]
[361927485,1747894257106,-511.26905141,0.00032876,5]
[361927486,1747894257116,-420.0,0.00032876,5]
[361927487,1747894257125,-420.0,0.00032876,5]
[361927488,1747894257138,-420.0,0.00032876,5]
[361927489,1747894257148,-420.0,0.00032876,5]
[361927490,1747894257158,-420.99051842,0.00032876,5]
[361927491,1747894257167,-505.44,0.00032876,5]
[361927492,1747894257176,-420.0,0.00032876,5]
[361927493,1747894257186,-482.97,0.00032876,5]
[361927494,1747894257195,-420.0,0.00032876,5]
[361927495,1747894257205,-420.0,0.00032876,5]
[361927496,1747894257216,-582.07,0.00032876,5]
[361927497,1747894257227,-783.92,0.00032876,5]
[361927498,1747894257235,-420.0,0.00032876,5]
[361927499,1747894257245,-151.0,0.00032876,7]
[361927500,1747894257255,-420.0,0.00032876,5]
[361927501,1747894257264,-420.0,0.00032876,5]
[361927502,1747894257273,-420.0,0.00032876,5]
[361927503,1747894257284,-618.42,0.00032876,5]
[361927504,1747894257294,-1825.87,0.00032876,5]
[361927505,1747894257304,-420.0,0.00032876,5]
[361927506,1747894257313,-420.0,0.00032876,5]
[361927507,1747894257322,-420.0,0.00032876,5]
[361927508,1747894257332,-499.57,0.00032876,5]
[361927509,1747894257341,-420.0,0.00032876,5]
[361927510,1747894257351,-420.0,0.00032876,5]
[361927511,1747894257360,-1004.33,0.00032876,5]
[361927512,1747894257370,-572.52,0.00032876,5]
[361927513,1747894257380,-500.0,0.00032876,120]
[361927514,1747894257390,-334.987499,0.00032876,7]
[361927515,1747894257399,-802.02,0.00032876,5]
[361927516,1747894257408,-1181.6,0.00032876,5]
[361927517,1747894257418,-420.0,0.00032876,5]
[361927518,1747894257427,-1252.21,0.00032876,5]
[361927519,1747894257437,-420.0,0.00032876,5]
[361927520,1747894257446,-420.0,0.00032876,5]
[361927521,1747894257456,-334.987499,0.00032876,7]
[361927522,1747894257465,-500.0,0.00032876,5]
[361927523,1747894257475,-420.0,0.00032876,5]
[361927524,1747894257485,-785.13,0.00032876,5]
[361927525,1747894257495,-869.31,0.00032876,5]
[361927526,1747894257504,-788.43,0.00032876,5]
[361927527,1747894257514,-279.078909,0.00032876,7]
[361927528,1747894257523,-1254.05,0.00032876,5]
[361927529,1747894257535,-693.95,0.00032876,5]
[361927530,1747894257545,-444.13353733,0.00032876,5]
[361927531,1747894257555,-1250.0,0.00032876,5]
[361927532,1747894257564,-424.97738832,0.00032876,5]
[361927533,1747894257573,-423.26291998,0.00032876,5]
[361927534,1747894257582,-421.91968567,0.00032876,5]
[361927535,1747894257592,-279.078909,0.00032876,7]
[361927536,1747894257601,-757.82,0.00032876,5]
[361927537,1747894257610,-420.0,0.00032876,5]
[361927538,1747894257619,-420.0,0.00032876,5]
[361927539,1747894257628,-672.199258,0.00032876,7]
[361927540,1747894257638,-151.0,0.00032876,7]
[361927541,1747894257647,-446.72850935,0.00032876,5]
[361927542,1747894257656,-467.97,0.00032876,5]
[361927543,1747894257666,-462.01,0.00032876,5]
[361927544,1747894257676,-420.0,0.00032876,5]
[361927545,1747894257685,-162.25387452,0.00032876,5]
[361927546,1747894257695,-641.21,0.00032876,5]
[361927547,1747894257706,-672.199258,0.00032876,7]
[361927548,1747894257715,-2000.0,0.00032876,5]
[361927549,1747894257725,-420.0,0.00032876,5]
[361927550,1747894257735,-420.0,0.00032876,5]
[361927551,1747894257744,-420.0,0.00032876,5]
[361927552,1747894257754,-1484.85,0.00032876,5]
[361927553,1747894257764,-683.2,0.00032876,5]
[361927554,1747894257773,-420.0,0.00032876,5]
[361927555,1747894257783,-420.0,0.00032876,5]
[361927556,1747894257793,-228.87625476,0.00032876,5]
[361927557,1747894257802,-420.0,0.00032876,5]
[361927558,1747894257811,-192.20151289,0.00032876,5]
[361927559,1747894257821,-1047.71,0.00032876,5]
[361927560,1747894257830,-766.78,0.00032876,5]
[361927561,1747894257840,-987.55,0.00032876,5]
[361927562,1747894257849,-420.0,0.00032876,5]
[361927563,1747894257859,-420.0,0.00032876,5]
[361927564,1747894257869,-462.78,0.00032876,5]
[361927565,1747894257878,-420.0,0.00032876,5]
[361927566,1747894257888,-547.35,0.00032876,5]
[361927567,1747894257898,-820.12,0.00032876,5]
[361927568,1747894257907,-420.0,0.00032876,5]
[361927569,1747894257918,-711.28,0.00032876,5]
[361927570,1747894257928,-420.0,0.00032876,5]
[361927571,1747894257938,-420.0,0.00032876,5]
[361927572,1747894257948,-422.66681784,0.00032876,5]
[361927573,1747894257957,-403.13518903,0.00032876,5]
[361927574,1747894257967,-420.0,0.00032876,5]
[361927575,1747894257976,-458.65,0.00032876,5]
[361927576,1747894257985,-420.0,0.00032876,5]
[361927577,1747894257995,-420.0,0.00032876,5]
[361927578,1747894258005,-420.0,0.00032876,5]
[361927579,1747894258014,-420.0,0.00032876,5]
[361927580,1747894258023,-420.0,0.00032876,5]
[361927581,1747894258033,-420.0,0.00032876,5]
[361927582,1747894258043,-1159.38,0.00032876,5]
[361927583,1747894258053,-638.47,0.00032876,5]
[361927584,1747894258062,-1317.09,0.00032876,5]
[361927585,1747894258071,-487.13,0.00032876,5]
[361927586,1747894258080,-1681.51,0.00032876,5]
[361927587,1747894258089,-1693.81,0.00032876,5]
[361927588,1747894258101,-420.0,0.00032876,5]
[361927589,1747894258110,-1011.96,0.00032876,5]
[361927590,1747894258120,-420.0,0.00032876,5]
[361927591,1747894258129,-420.0,0.00032876,5]
[361927592,1747894258140,-813.05,0.00032876,5]
[361927593,1747894258149,-420.0,0.00032876,5]
[361927594,1747894258159,-585.4,0.00032876,5]
[361927595,1747894258167,-420.0,0.00032876,5]
[361927596,1747894258177,-420.0,0.00032876,5]
[361927597,1747894258187,-153.042757,0.00032876,7]
[361927598,1747894258196,-420.0,0.00032876,5]
[361927599,1747894258206,-453.87865011,0.00032876,5]
[361927600,1747894258216,-771.54,0.00032876,5]
[361927601,1747894258225,-420.0,0.00032876,5]
[361927602,1747894258235,-421.21399392,0.00032876,5]
[361927603,1747894258244,-1033.01,0.00032876,5]
[361927604,1747894258254,-420.0,0.00032876,5]
[361927605,1747894258263,-432.89,0.00032876,5]
[361927606,1747894258273,-420.0,0.00032876,5]
[361927607,1747894258283,-420.0,0.00032876,5]
[361927608,1747894258294,-1274.78,0.00032876,5]
[361927609,1747894258304,-420.0,0.00032876,5]
[361927610,1747894258313,-922.33,0.00032876,5]
[361927611,1747894258322,-1103.91,0.00032876,5]
[361927612,1747894258332,-11232.08,0.00032876,5]
[361927613,1747894258341,-684.16,0.00032876,5]
[361927614,1747894258351,-1107.36,0.00032876,5]
[361927615,1747894258360,-420.0,0.00032876,5]
[361927616,1747894258370,-420.0,0.00032876,5]
[361927617,1747894258380,-420.0,0.00032876,5]
[361927618,1747894258389,-151.0,0.00032876,7]
[361927619,1747894258398,-420.0,0.00032876,5]
[361927620,1747894258407,-239.311807,0.00032876,7]
[361927621,1747894258417,-2051.1,0.00032876,5]
[361927622,1747894258427,-420.0,0.00032876,5]
[361927623,1747894258437,-420.0,0.00032876,5]
[361927624,1747894258446,-1097.72,0.00032876,5]
[361927625,1747894258455,-468.06,0.00032876,5]
[361927626,1747894258465,-600.29,0.00032876,5]
[361927627,1747894258475,-1544.98,0.00032876,5]
[361927628,1747894258484,-420.0,0.00032876,5]
[361927629,1747894258494,-420.98975065,0.00032876,5]
[361927630,1747894258503,-501.29,0.00032876,5]
[361927631,1747894258512,-151.0,0.00032876,7]
[361927632,1747894258522,-1000.0,0.00032876,5]
[361927633,1747894258532,-300.0,0.00032876,5]
[361927634,1747894258541,-1745.16,0.00032876,5]
[361927635,1747894258550,-513.52671288,0.00032876,5]
[361927636,1747894258559,-534.82,0.00032876,5]
[361927637,1747894258568,-471.17,0.00032876,5]
[361927638,1747894258578,-420.0,0.00032876,5]
[361927639,1747894258588,-1138.09,0.00032876,5]
[361927640,1747894258597,-421.40144308,0.00032876,5]
[361927641,1747894258607,-3824.61,0.00032876,5]
[361927642,1747894258616,-420.0,0.00032876,5]
[361927643,1747894258626,-420.0,0.00032876,5]
[361927644,1747894258636,-421.74302157,0.00032876,5]
[361927645,1747894258645,-420.0,0.00032876,5]
[361927646,1747894258654,-953.9,0.00032876,5]
[361927647,1747894258664,-420.0,0.00032876,5]
[361927648,1747894258674,-420.0,0.00032876,5]
[361927649,1747894258683,-151.0,0.00032876,7]
[361927650,1747894258692,-152.925779,0.00032876,7]
[361927651,1747894258701,-420.0,0.00032876,5]
[361927652,1747894258711,-555.56,0.00032876,5]
[361927653,1747894258720,-1626.36,0.00032876,5]
[361927654,1747894258729,-1051.95,0.00032876,5]
[361927655,1747894258739,-420.0,0.00032876,5]
[361927656,1747894258748,-420.0,0.00032876,5]
[361927657,1747894258757,-779.56,0.00032876,5]
[361927658,1747894258767,-1311.7,0.00032876,5]
[361927659,1747894258776,-421.94520149,0.00032876,5]
[361927660,1747894258788,-12821.19,0.00032876,5]
[361927661,1747894258797,-420.0,0.00032876,5]
[361927662,1747894258807,-420.0,0.00032876,5]
[361927663,1747894258817,-974.16,0.00032876,5]
[361927664,1747894258826,-420.0,0.00032876,5]
[361927665,1747894258836,-1831.93,0.00032876,5]
[361927666,1747894258845,-489.93167341,0.00032876,5]
[361927667,1747894258855,-420.0,0.00032876,5]
[361927668,1747894258864,-420.0,0.00032876,5]
[361927669,1747894258875,-1278.55,0.00032876,5]
[361927670,1747894258884,-420.0,0.00032876,5]
[361927671,1747894258894,-617.99,0.00032876,5]
[361927672,1747894258904,-445.35,0.00032876,5]
[361927673,1747894258913,-424.95,0.00032876,5]